[Event "Titled Tuesday Blitz August 08 Late 2023"]
[White "Wieczorek, Oskar"]
[Black "Tharushi, T H D Niklesha"]
[WhiteFideId "1133950"]
[BlackFideId "9918264"]
[WhiteElo "2647"]
[BlackElo "2110"]
[Result "1-0"]
[Round "2"]
[TimeControl "180+1"]
[Date "2023.08.08"]
[WhiteClock "0:01:52"]
[BlackClock "0:00:56"]
[Board "87"]

1. e4 {[%clk 0:03:00]}  c5 {[%clk 0:03:00]} 2. Nf3 {[%clk 0:03:00]}  d6 {[%clk 0:03:00]} 3. d4 {[%clk 0:03:00]}  cxd4 {[%clk 0:03:01]} 4. Nxd4 {[%clk 0:03:01]}  Nf6 {[%clk 0:03:02]} 5. Nc3 {[%clk 0:03:02]}  g6 {[%clk 0:03:02]} 6. Be2 {[%clk 0:03:01]}  Bg7 {[%clk 0:03:01]} 7. O-O {[%clk 0:03:02]}  O-O {[%clk 0:03:00]} 8. Re1 {[%clk 0:03:02]}  Nc6 {[%clk 0:03:00]} 9. Nb3 {[%clk 0:03:03]}  Be6 {[%clk 0:02:56]} 10. Rf1 {[%clk 0:03:02]}  Nd7 {[%clk 0:02:54]} 11. Re1 {[%clk 0:02:59]}  a5 {[%clk 0:02:52]} 12. Bb5 {[%clk 0:02:55]}  Bxb3 {[%clk 0:02:35]} 13. axb3 {[%clk 0:02:54]}  Nd4 {[%clk 0:02:36]} 14. Bd3 {[%clk 0:02:46]}  Nc5 {[%clk 0:02:35]} 15. Bc4 {[%clk 0:02:40]}  Nc6 {[%clk 0:02:13]} 16. Nb5 {[%clk 0:02:36]}  Ne5 {[%clk 0:02:11]} 17. Bf1 {[%clk 0:02:36]}  Rc8 {[%clk 0:02:04]} 18. c3 {[%clk 0:02:32]}  Qb6 {[%clk 0:01:59]} 19. Be3 {[%clk 0:02:25]}  Qc6 {[%clk 0:01:57]} 20. Na7 {[%clk 0:02:17]}  Qb6 {[%clk 0:01:34]} 21. Nxc8 {[%clk 0:02:17]}  Rxc8 {[%clk 0:01:34]} 22. Bd4 {[%clk 0:02:12]}  Qxb3 {[%clk 0:01:34]} 23. Bxc5 {[%clk 0:02:09]}  Qxd1 {[%clk 0:01:33]} 24. Rexd1 {[%clk 0:02:10]}  Rxc5 {[%clk 0:01:34]} 25. Rd5 {[%clk 0:02:10]}  Nd7 {[%clk 0:01:29]} 26. Rxa5 {[%clk 0:02:08]}  b6 {[%clk 0:01:21]} 27. Ra8+ {[%clk 0:02:06]}  Bf8 {[%clk 0:01:20]} 28. Bb5 {[%clk 0:02:05]}  Nf6 {[%clk 0:01:15]} 29. Rxc5 {[%clk 0:02:05]}  bxc5 {[%clk 0:01:16]} 30. Bc6 {[%clk 0:02:05]}  Ng4 {[%clk 0:01:11]} 31. b4 {[%clk 0:02:02]}  Ne5 {[%clk 0:01:11]} 32. b5 {[%clk 0:02:02]}  Kg7 {[%clk 0:01:03]} 33. Be8 {[%clk 0:01:59]}  Nc4 {[%clk 0:01:00]} 34. Rb8 {[%clk 0:01:57]}  e6 {[%clk 0:00:57]} 35. b6 {[%clk 0:01:57]}  d5 {[%clk 0:00:58]} 36. exd5 {[%clk 0:01:57]}  exd5 {[%clk 0:00:58]} 37. b7 {[%clk 0:01:56]}  d4 {[%clk 0:00:48]} 38. cxd4 {[%clk 0:01:54]}  cxd4 {[%clk 0:00:49]} 39. Rd8 {[%clk 0:01:54]}  Bd6 {[%clk 0:00:44]} 40. Rxd6 {[%clk 0:01:53]}  Nxd6 {[%clk 0:00:42]} 41. b8=Q {[%clk 0:01:53]}  Nxe8 {[%clk 0:00:42]} 42. Qxe8 {[%clk 0:01:53]}  d3 {[%clk 0:00:43]} 43. Qe3 {[%clk 0:01:53]}  d2 {[%clk 0:00:42]} 44. Qxd2 {[%clk 0:01:54]}  Kf6 {[%clk 0:00:43]} 45. g3 {[%clk 0:01:55]}  Kf5 {[%clk 0:00:43]} 46. h4 {[%clk 0:01:56]}  Kg4 {[%clk 0:00:43]} 47. Kg2 {[%clk 0:01:57]}  Kh5 {[%clk 0:00:43]} 48. Qe2+ {[%clk 0:01:57]}  Kh6 {[%clk 0:00:43]} 49. Kf3 {[%clk 0:01:58]}  f5 {[%clk 0:00:43]} 50. Kf4 {[%clk 0:01:59]}  Kg7 {[%clk 0:00:43]} 51. Ke5 {[%clk 0:02:00]}  Kh6 {[%clk 0:00:43]} 52. h5 {[%clk 0:01:58]}  f4 {[%clk 0:00:44]} 53. hxg6 {[%clk 0:01:53]}  fxg3 {[%clk 0:00:45]} 54. fxg3 {[%clk 0:01:49]}  hxg6 {[%clk 0:00:45]} 55. Kf6 {[%clk 0:01:48]}  g5 {[%clk 0:00:45]} 56. Kf5 {[%clk 0:01:46]}  g4 {[%clk 0:00:46]} 57. Kxg4 {[%clk 0:01:46]}  Kh7 {[%clk 0:00:46]} 58. Kg5 {[%clk 0:01:47]}  Kg8 {[%clk 0:00:47]} 59. Qe7 {[%clk 0:01:47]}  Kh8 {[%clk 0:00:47]} 60. Kg6 {[%clk 0:01:47]}  Kg8 {[%clk 0:00:47]} 61. g4 {[%clk 0:01:48]}  Kh8 {[%clk 0:00:48]} 62. g5 {[%clk 0:01:49]}  Kg8 {[%clk 0:00:48]} 63. Qh7+ {[%clk 0:01:49]}  Kf8 {[%clk 0:00:49]} 64. Kf6 {[%clk 0:01:49]}  Ke8 {[%clk 0:00:48]} 65. Qf7+ {[%clk 0:01:50]}  Kd8 {[%clk 0:00:48]} 66. g6 {[%clk 0:01:50]}  Kc8 {[%clk 0:00:48]} 67. g7 {[%clk 0:01:51]}  Kb8 {[%clk 0:00:49]} 68. Kg6 {[%clk 0:01:52]}  Kc8 {[%clk 0:00:50]} 69. Kh7 {[%clk 0:01:53]}  Kb8 {[%clk 0:00:51]} 70. Kg8 {[%clk 0:01:54]}  Kc8 {[%clk 0:00:52]} 71. Kf8 {[%clk 0:01:55]}  Kb8 {[%clk 0:00:53]} 72. g8=Q {[%clk 0:01:55]}  Kc8 {[%clk 0:00:54]} 73. Qh8 {[%clk 0:01:55]}  Kb8 {[%clk 0:00:54]} 74. Qfg7 {[%clk 0:01:54]}  Kc8 {[%clk 0:00:55]} 75. Kg8 {[%clk 0:01:51]}  Kb8 {[%clk 0:00:56]} 76. Kh7# {[%clk 0:01:52]} 1-0


[Site "https://www.chess.com"]

[Event "Titled Tuesday Blitz August 08 Late 2023"]
[White "Burke, Paul"]
[Black "Domingo Nunez, Ruben"]
[WhiteFideId "2605767"]
[BlackFideId "22245570"]
[WhiteElo "1867"]
[BlackElo "2642"]
[Result "0-1"]
[Round "2"]
[TimeControl "180+1"]
[Date "2023.08.08"]
[WhiteClock "0:01:48"]
[BlackClock "0:02:31"]
[Board "88"]

1. e4 {[%clk 0:02:34]}  g6 {[%clk 0:03:00]} 2. Nc3 {[%clk 0:02:33]}  Bg7 {[%clk 0:03:00]} 3. g3 {[%clk 0:02:34]}  c5 {[%clk 0:03:00]} 4. Bg2 {[%clk 0:02:33]}  Nc6 {[%clk 0:03:01]} 5. d3 {[%clk 0:02:34]}  Rb8 {[%clk 0:03:02]} 6. Nge2 {[%clk 0:02:29]}  b5 {[%clk 0:03:01]} 7. O-O {[%clk 0:02:26]}  b4 {[%clk 0:03:01]} 8. Nd5 {[%clk 0:02:25]}  e6 {[%clk 0:02:59]} 9. Ne3 {[%clk 0:02:25]}  Nge7 {[%clk 0:02:59]} 10. h3 {[%clk 0:02:25]}  O-O {[%clk 0:02:56]} 11. f4 {[%clk 0:02:24]}  d5 {[%clk 0:02:50]} 12. e5 {[%clk 0:02:21]}  f6 {[%clk 0:02:44]} 13. exf6 {[%clk 0:02:19]}  Bxf6 {[%clk 0:02:45]} 14. Ng4 {[%clk 0:02:18]}  Bg7 {[%clk 0:02:46]} 15. Ne5 {[%clk 0:02:06]}  Nxe5 {[%clk 0:02:43]} 16. fxe5 {[%clk 0:02:06]}  Bxe5 {[%clk 0:02:38]} 17. Bh6 {[%clk 0:02:01]}  Rxf1+ {[%clk 0:02:37]} 18. Qxf1 {[%clk 0:02:00]}  Nf5 {[%clk 0:02:38]} 19. Bf4 {[%clk 0:01:58]}  Qd6 {[%clk 0:02:34]} 20. Bxe5 {[%clk 0:01:57]}  Qxe5 {[%clk 0:02:35]} 21. Nf4 {[%clk 0:01:56]}  Nxg3 {[%clk 0:02:31]} 22. Qf3 {[%clk 0:01:51]}  Qxf4 {[%clk 0:02:31]} 23. Qxf4 {[%clk 0:01:48]}  Ne2+ {[%clk 0:02:31]} 0-1


[Site "https://www.chess.com"]

[Event "Titled Tuesday Blitz August 08 Late 2023"]
[White "Haydon, David L"]
[Black "Lima, Kleyton Alcantara"]
[WhiteFideId "415405"]
[BlackFideId "22718397"]
[WhiteElo "2779"]
[BlackElo "2463"]
[Result "1/2-1/2"]
[Round "2"]
[TimeControl "180+1"]
[Date "2023.08.08"]
[WhiteClock "0:00:48"]
[BlackClock "0:00:26"]
[Board "90"]

1. d4 {[%clk 0:03:00]}  Nf6 {[%clk 0:02:59]} 2. Nc3 {[%clk 0:03:00]}  d5 {[%clk 0:02:58]} 3. Bf4 {[%clk 0:03:01]}  e6 {[%clk 0:02:55]} 4. e3 {[%clk 0:03:01]}  Bb4 {[%clk 0:02:54]} 5. Ne2 {[%clk 0:03:00]}  Ne4 {[%clk 0:02:50]} 6. Qd3 {[%clk 0:02:58]}  O-O {[%clk 0:02:45]} 7. f3 {[%clk 0:02:57]}  Nxc3 {[%clk 0:02:45]} 8. Nxc3 {[%clk 0:02:53]}  c5 {[%clk 0:02:44]} 9. a3 {[%clk 0:02:50]}  Bxc3+ {[%clk 0:02:18]} 10. Qxc3 {[%clk 0:02:45]}  cxd4 {[%clk 0:02:18]} 11. exd4 {[%clk 0:02:44]}  b6 {[%clk 0:02:17]} 12. Bd3 {[%clk 0:02:43]}  Ba6 {[%clk 0:02:14]} 13. Bxb8 {[%clk 0:02:37]}  Bxd3 {[%clk 0:02:14]} 14. Bc7 {[%clk 0:02:37]}  Qd7 {[%clk 0:02:08]} 15. cxd3 {[%clk 0:02:37]}  Rfc8 {[%clk 0:02:05]} 16. Rc1 {[%clk 0:02:37]}  a5 {[%clk 0:01:47]} 17. Qc6 {[%clk 0:02:35]}  Qxc6 {[%clk 0:01:45]} 18. Rxc6 {[%clk 0:02:35]}  Ra7 {[%clk 0:01:45]} 19. Rxb6 {[%clk 0:02:14]}  Raxc7 {[%clk 0:01:45]} 20. O-O {[%clk 0:02:15]}  Rc2 {[%clk 0:01:38]} 21. Rf2 {[%clk 0:02:07]}  Rc1+ {[%clk 0:01:37]} 22. Rf1 {[%clk 0:02:07]}  R1c2 {[%clk 0:01:38]} 23. g3 {[%clk 0:01:14]}  Rd2 {[%clk 0:01:36]} 24. Rb3 {[%clk 0:01:13]}  a4 {[%clk 0:01:13]} 25. Rb4 {[%clk 0:00:59]}  g5 {[%clk 0:01:01]} 26. Rf2 {[%clk 0:00:56]}  Rcc2 {[%clk 0:00:50]} 27. Rxd2 {[%clk 0:00:55]}  Rxd2 {[%clk 0:00:51]} 28. Rxa4 {[%clk 0:00:55]}  Rxb2 {[%clk 0:00:50]} 29. Rb4 {[%clk 0:00:52]}  Ra2 {[%clk 0:00:46]} 30. Rb3 {[%clk 0:00:52]}  Kg7 {[%clk 0:00:39]} 31. g4 {[%clk 0:00:51]}  Kg6 {[%clk 0:00:36]} 32. h3 {[%clk 0:00:51]}  h5 {[%clk 0:00:36]} 33. Rc3 {[%clk 0:00:51]}  h4 {[%clk 0:00:33]} 34. Rb3 {[%clk 0:00:50]}  f5 {[%clk 0:00:33]} 35. Rc3 {[%clk 0:00:47]}  Kf6 {[%clk 0:00:31]} 36. Rb3 {[%clk 0:00:47]}  Kg6 {[%clk 0:00:30]} 37. Rc3 {[%clk 0:00:47]}  Kf6 {[%clk 0:00:30]} 38. Rb3 {[%clk 0:00:48]}  Kg6 {[%clk 0:00:26]} 1/2-1/2


[Site "https://www.chess.com"]

[Event "Titled Tuesday Blitz August 08 Late 2023"]
[White "Morefield, Jason"]
[Black "littlepinkyboy"]
[WhiteFideId "30920825"]
[WhiteElo "2702"]
[BlackElo "2399"]
[Result "1-0"]
[Round "2"]
[TimeControl "180+1"]
[Date "2023.08.08"]
[WhiteClock "0:00:34"]
[BlackClock "0:00:02"]
[Board "94"]

1. e4 {[%clk 0:02:59]}  c5 {[%clk 0:02:54]} 2. Nf3 {[%clk 0:02:58]}  d6 {[%clk 0:02:52]} 3. Bb5+ {[%clk 0:02:57]}  Bd7 {[%clk 0:02:51]} 4. c4 {[%clk 0:02:58]}  Bxb5 {[%clk 0:02:50]} 5. cxb5 {[%clk 0:02:59]}  Nf6 {[%clk 0:02:50]} 6. Nc3 {[%clk 0:02:59]}  g6 {[%clk 0:02:50]} 7. d4 {[%clk 0:02:58]}  cxd4 {[%clk 0:02:51]} 8. Nxd4 {[%clk 0:02:58]}  Bg7 {[%clk 0:02:51]} 9. O-O {[%clk 0:02:59]}  O-O {[%clk 0:02:52]} 10. Be3 {[%clk 0:02:59]}  Nbd7 {[%clk 0:02:52]} 11. Qe2 {[%clk 0:02:58]}  Rc8 {[%clk 0:02:53]} 12. Rfd1 {[%clk 0:02:51]}  Rxc3 {[%clk 0:02:48]} 13. bxc3 {[%clk 0:02:51]}  Nxe4 {[%clk 0:02:48]} 14. Qc2 {[%clk 0:02:45]}  Ndf6 {[%clk 0:02:41]} 15. f3 {[%clk 0:02:25]}  Nc5 {[%clk 0:02:39]} 16. Nf5 {[%clk 0:02:17]}  gxf5 {[%clk 0:02:13]} 17. Bxc5 {[%clk 0:02:17]}  Qa5 {[%clk 0:02:13]} 18. Bd4 {[%clk 0:02:11]}  Qxb5 {[%clk 0:02:09]} 19. Rab1 {[%clk 0:02:11]}  Qd7 {[%clk 0:01:54]} 20. Bxa7 {[%clk 0:02:09]}  Rc8 {[%clk 0:01:17]} 21. Qb3 {[%clk 0:01:55]}  Bf8 {[%clk 0:00:39]} 22. Qxb7 {[%clk 0:01:46]}  Qxb7 {[%clk 0:00:40]} 23. Rxb7 {[%clk 0:01:44]}  Rxc3 {[%clk 0:00:39]} 24. Bd4 {[%clk 0:01:43]}  Ra3 {[%clk 0:00:32]} 25. Bxf6 {[%clk 0:01:34]}  exf6 {[%clk 0:00:33]} 26. Rd2 {[%clk 0:01:17]}  Kg7 {[%clk 0:00:28]} 27. Rb3 {[%clk 0:01:14]}  Ra4 {[%clk 0:00:26]} 28. Kf1 {[%clk 0:01:07]}  Kg6 {[%clk 0:00:22]} 29. Ke2 {[%clk 0:00:57]}  Bh6 {[%clk 0:00:09]} 30. Rdb2 {[%clk 0:00:54]}  Bf4 {[%clk 0:00:09]} 31. Rb4 {[%clk 0:00:46]}  Rxb4 {[%clk 0:00:10]} 32. Rxb4 {[%clk 0:00:47]}  Bxh2 {[%clk 0:00:10]} 33. a4 {[%clk 0:00:46]}  Bg1 {[%clk 0:00:08]} 34. a5 {[%clk 0:00:45]}  Kg5 {[%clk 0:00:08]} 35. Rb7 {[%clk 0:00:44]}  h5 {[%clk 0:00:08]} 36. a6 {[%clk 0:00:43]}  Kf4 {[%clk 0:00:05]} 37. a7 {[%clk 0:00:41]}  Bxa7 {[%clk 0:00:06]} 38. Rxa7 {[%clk 0:00:42]}  Kg3 {[%clk 0:00:07]} 39. Kf1 {[%clk 0:00:38]}  h4 {[%clk 0:00:04]} 40. Rxf7 {[%clk 0:00:38]}  h3 {[%clk 0:00:05]} 41. Rg7+ {[%clk 0:00:37]}  Kf4 {[%clk 0:00:04]} 42. gxh3 {[%clk 0:00:35]}  Kxf3 {[%clk 0:00:04]} 43. h4 {[%clk 0:00:33]}  d5 {[%clk 0:00:05]} 44. h5 {[%clk 0:00:33]}  d4 {[%clk 0:00:05]} 45. h6 {[%clk 0:00:34]}  d3 {[%clk 0:00:02]} 46. Rd7 {[%clk 0:00:34]} 1-0


[Site "https://www.chess.com"]

[Event "Titled Tuesday Blitz August 08 Late 2023"]
[White "Seemann, Jakub"]
[Black "Djabri, Massinas"]
[WhiteFideId "21874697"]
[BlackFideId "7905726"]
[WhiteElo "2666"]
[BlackElo "2398"]
[Result "0-1"]
[Round "2"]
[TimeControl "180+1"]
[Date "2023.08.08"]
[WhiteClock "0:00:00"]
[BlackClock "0:00:13"]
[Board "95"]

1. Nf3 {[%clk 0:03:00]}  d5 {[%clk 0:02:59]} 2. g3 {[%clk 0:03:00]}  Nf6 {[%clk 0:02:59]} 3. Bg2 {[%clk 0:03:01]}  c5 {[%clk 0:02:59]} 4. O-O {[%clk 0:03:01]}  e6 {[%clk 0:02:58]} 5. d4 {[%clk 0:03:02]}  cxd4 {[%clk 0:02:56]} 6. Nxd4 {[%clk 0:03:03]}  Be7 {[%clk 0:02:54]} 7. c4 {[%clk 0:03:02]}  dxc4 {[%clk 0:02:53]} 8. Qa4+ {[%clk 0:03:02]}  Nbd7 {[%clk 0:02:53]} 9. Qxc4 {[%clk 0:03:02]}  O-O {[%clk 0:02:54]} 10. Rd1 {[%clk 0:03:02]}  Nb6 {[%clk 0:02:54]} 11. Qc2 {[%clk 0:03:02]}  Nbd5 {[%clk 0:02:48]} 12. Nc3 {[%clk 0:03:01]}  Bd7 {[%clk 0:02:44]} 13. Nxd5 {[%clk 0:02:57]}  Nxd5 {[%clk 0:02:43]} 14. Bxd5 {[%clk 0:02:57]}  exd5 {[%clk 0:02:43]} 15. Bf4 {[%clk 0:02:58]}  Bh3 {[%clk 0:02:28]} 16. Rac1 {[%clk 0:02:54]}  Qa5 {[%clk 0:02:22]} 17. a3 {[%clk 0:02:53]}  Bf6 {[%clk 0:02:11]} 18. Qc7 {[%clk 0:02:19]}  Qa4 {[%clk 0:01:54]} 19. Qc2 {[%clk 0:01:23]}  Qa6 {[%clk 0:01:49]} 20. Qd3 {[%clk 0:00:42]}  Qb6 {[%clk 0:01:44]} 21. b4 {[%clk 0:00:39]}  Rac8 {[%clk 0:01:37]} 22. Nb3 {[%clk 0:00:33]}  Rxc1 {[%clk 0:01:07]} 23. Rxc1 {[%clk 0:00:33]}  d4 {[%clk 0:01:06]} 24. Nc5 {[%clk 0:00:29]}  Qc6 {[%clk 0:01:01]} 25. f3 {[%clk 0:00:27]}  Qd5 {[%clk 0:00:59]} 26. Ne4 {[%clk 0:00:23]}  Be7 {[%clk 0:00:52]} 27. Rc7 {[%clk 0:00:19]}  Re8 {[%clk 0:00:51]} 28. Qc4 {[%clk 0:00:08]}  Qxc4 {[%clk 0:00:39]} 29. Rxc4 {[%clk 0:00:08]}  Rd8 {[%clk 0:00:30]} 30. Nf2 {[%clk 0:00:07]}  Be6 {[%clk 0:00:28]} 31. Rc7 {[%clk 0:00:07]}  Rd7 {[%clk 0:00:28]} 32. Rc8+ {[%clk 0:00:06]}  Rd8 {[%clk 0:00:26]} 33. Rxd8+ {[%clk 0:00:06]}  Bxd8 {[%clk 0:00:26]} 34. Nd3 {[%clk 0:00:06]}  Be7 {[%clk 0:00:23]} 35. Be5 {[%clk 0:00:05]}  a5 {[%clk 0:00:22]} 36. Bxd4 {[%clk 0:00:04]}  axb4 {[%clk 0:00:20]} 37. axb4 {[%clk 0:00:05]}  Bc4 {[%clk 0:00:20]} 38. Bc5 {[%clk 0:00:06]}  Bf6 {[%clk 0:00:16]} 39. Kf2 {[%clk 0:00:06]}  Bc3 {[%clk 0:00:16]} 40. Ke3 {[%clk 0:00:06]}  f6 {[%clk 0:00:16]} 41. Bd6 {[%clk 0:00:05]}  Kf7 {[%clk 0:00:16]} 42. Bc5 {[%clk 0:00:05]}  Ke6 {[%clk 0:00:16]} 43. Nf4+ {[%clk 0:00:06]}  Kf7 {[%clk 0:00:16]} 44. g4 {[%clk 0:00:06]}  g5 {[%clk 0:00:16]} 45. Nd3 {[%clk 0:00:06]}  Ke6 {[%clk 0:00:16]} 46. Nf2 {[%clk 0:00:06]}  f5 {[%clk 0:00:12]} 47. gxf5+ {[%clk 0:00:06]}  Kxf5 {[%clk 0:00:13]} 48. Ne4 {[%clk 0:00:06]}  Be5 {[%clk 0:00:13]} 49. h3 {[%clk 0:00:04]}  Bf4+ {[%clk 0:00:14]} 50. Kd4 {[%clk 0:00:04]}  Bxe2 {[%clk 0:00:13]} 51. Kd5 {[%clk 0:00:00]}  Bxf3 {[%clk 0:00:13]} 0-1


[Site "https://www.chess.com"]

[Event "Titled Tuesday Blitz August 08 Late 2023"]
[White "Hua, Lefong"]
[Black "Gatterer, Florian"]
[WhiteFideId "2602253"]
[BlackFideId "811688"]
[WhiteElo "2646"]
[BlackElo "2376"]
[Result "1-0"]
[Round "2"]
[TimeControl "180+1"]
[Date "2023.08.08"]
[WhiteClock "0:00:23"]
[BlackClock "0:00:00"]
[Board "97"]

1. d4 {[%clk 0:03:00]}  Nf6 {[%clk 0:02:56]} 2. c4 {[%clk 0:03:01]}  g6 {[%clk 0:02:56]} 3. Nc3 {[%clk 0:03:01]}  d5 {[%clk 0:02:56]} 4. cxd5 {[%clk 0:03:02]}  Nxd5 {[%clk 0:02:56]} 5. e4 {[%clk 0:03:03]}  Nxc3 {[%clk 0:02:56]} 6. bxc3 {[%clk 0:03:03]}  Bg7 {[%clk 0:02:57]} 7. Nf3 {[%clk 0:03:04]}  c5 {[%clk 0:02:57]} 8. Rb1 {[%clk 0:03:02]}  Bg4 {[%clk 0:02:56]} 9. Bb5+ {[%clk 0:02:34]}  Nd7 {[%clk 0:02:50]} 10. O-O {[%clk 0:02:33]}  O-O {[%clk 0:02:47]} 11. Be2 {[%clk 0:02:21]}  cxd4 {[%clk 0:02:31]} 12. cxd4 {[%clk 0:02:20]}  Nb6 {[%clk 0:02:28]} 13. d5 {[%clk 0:02:16]}  e6 {[%clk 0:02:25]} 14. h3 {[%clk 0:02:08]}  Bxf3 {[%clk 0:02:22]} 15. Bxf3 {[%clk 0:02:09]}  exd5 {[%clk 0:02:22]} 16. exd5 {[%clk 0:02:09]}  Be5 {[%clk 0:02:04]} 17. Qd3 {[%clk 0:02:02]}  Re8 {[%clk 0:01:57]} 18. Be3 {[%clk 0:01:53]}  Bd6 {[%clk 0:01:51]} 19. Rb5 {[%clk 0:01:49]}  Qf6 {[%clk 0:01:44]} 20. Rfb1 {[%clk 0:01:43]}  Nd7 {[%clk 0:01:38]} 21. Rxb7 {[%clk 0:01:36]}  Ne5 {[%clk 0:01:38]} 22. Qd1 {[%clk 0:01:34]}  Nxf3+ {[%clk 0:01:13]} 23. Qxf3 {[%clk 0:01:35]}  Qxf3 {[%clk 0:01:13]} 24. gxf3 {[%clk 0:01:35]}  a5 {[%clk 0:01:13]} 25. Rd7 {[%clk 0:01:34]}  Bb4 {[%clk 0:01:02]} 26. Rc1 {[%clk 0:01:18]}  Rac8 {[%clk 0:00:59]} 27. Rc6 {[%clk 0:01:18]}  Rcd8 {[%clk 0:00:51]} 28. Rcc7 {[%clk 0:01:13]}  Rxd7 {[%clk 0:00:46]} 29. Rxd7 {[%clk 0:01:14]}  h5 {[%clk 0:00:46]} 30. Kf1 {[%clk 0:01:08]}  Bc3 {[%clk 0:00:35]} 31. Rc7 {[%clk 0:01:04]}  Be5 {[%clk 0:00:31]} 32. Ra7 {[%clk 0:01:03]}  Bc3 {[%clk 0:00:31]} 33. Ke2 {[%clk 0:01:00]}  Rd8 {[%clk 0:00:31]} 34. Kd3 {[%clk 0:01:01]}  Bb4 {[%clk 0:00:23]} 35. Ke4 {[%clk 0:00:51]}  Re8+ {[%clk 0:00:20]} 36. Kd4 {[%clk 0:00:51]}  Rd8 {[%clk 0:00:20]} 37. Ra6 {[%clk 0:00:48]}  Kg7 {[%clk 0:00:19]} 38. Kc4 {[%clk 0:00:48]}  f6 {[%clk 0:00:16]} 39. Bd4 {[%clk 0:00:47]}  Be7 {[%clk 0:00:14]} 40. Ra7 {[%clk 0:00:45]}  Kf8 {[%clk 0:00:14]} 41. Ra6 {[%clk 0:00:40]}  Kf7 {[%clk 0:00:14]} 42. Rxa5 {[%clk 0:00:38]}  Rc8+ {[%clk 0:00:14]} 43. Kd3 {[%clk 0:00:37]}  Rc1 {[%clk 0:00:13]} 44. Ra7 {[%clk 0:00:34]}  Rd1+ {[%clk 0:00:13]} 45. Ke3 {[%clk 0:00:32]}  Ke8 {[%clk 0:00:12]} 46. Ra6 {[%clk 0:00:29]}  Kf7 {[%clk 0:00:12]} 47. a4 {[%clk 0:00:28]}  f5 {[%clk 0:00:11]} 48. f4 {[%clk 0:00:28]}  h4 {[%clk 0:00:11]} 49. a5 {[%clk 0:00:26]}  Rb1 {[%clk 0:00:09]} 50. Kd3 {[%clk 0:00:25]}  Rb3+ {[%clk 0:00:09]} 51. Kc4 {[%clk 0:00:23]}  Rb4+ {[%clk 0:00:09]} 52. Kc3 {[%clk 0:00:23]}  Rb1 {[%clk 0:00:09]} 53. Ra7 {[%clk 0:00:23]}  Ke8 {[%clk 0:00:08]} 54. Ra8+ {[%clk 0:00:22]}  Kd7 {[%clk 0:00:08]} 55. Rg8 {[%clk 0:00:22]}  Bb4+ {[%clk 0:00:07]} 56. Kc4 {[%clk 0:00:22]}  Bxa5 {[%clk 0:00:07]} 57. Rg7+ {[%clk 0:00:23]}  Ke8 {[%clk 0:00:07]} 58. Rxg6 {[%clk 0:00:23]}  Rh1 {[%clk 0:00:05]} 59. d6 {[%clk 0:00:22]}  Rxh3 {[%clk 0:00:05]} 60. Kd5 {[%clk 0:00:22]}  Kd7 {[%clk 0:00:05]} 61. Rg7+ {[%clk 0:00:22]}  Ke8 {[%clk 0:00:00]} 62. Ke6 {[%clk 0:00:23]} 1-0


[Site "https://www.chess.com"]

[Event "Titled Tuesday Blitz August 08 Late 2023"]
[White "Rostomyan, Mikayel"]
[Black "Smiechu"]
[WhiteFideId "13313754"]
[WhiteElo "2602"]
[BlackElo "2357"]
[Result "1-0"]
[Round "2"]
[TimeControl "180+1"]
[Date "2023.08.08"]
[WhiteClock "0:02:24"]
[BlackClock "0:02:15"]
[Board "99"]

1. d4 {[%clk 0:03:00]}  Nf6 {[%clk 0:02:57]} 2. Nf3 {[%clk 0:02:59]}  c5 {[%clk 0:02:57]} 3. d5 {[%clk 0:02:59]}  e6 {[%clk 0:02:57]} 4. Nc3 {[%clk 0:02:57]}  b5 {[%clk 0:02:56]} 5. dxe6 {[%clk 0:02:53]}  fxe6 {[%clk 0:02:55]} 6. Nxb5 {[%clk 0:02:52]}  d5 {[%clk 0:02:55]} 7. c4 {[%clk 0:02:53]}  a6 {[%clk 0:02:50]} 8. Na3 {[%clk 0:02:47]}  d4 {[%clk 0:02:50]} 9. e3 {[%clk 0:02:47]}  Nc6 {[%clk 0:02:48]} 10. Nc2 {[%clk 0:02:40]}  e5 {[%clk 0:02:48]} 11. exd4 {[%clk 0:02:40]}  exd4 {[%clk 0:02:47]} 12. Bd3 {[%clk 0:02:39]}  Bd6 {[%clk 0:02:44]} 13. O-O {[%clk 0:02:39]}  O-O {[%clk 0:02:44]} 14. Bg5 {[%clk 0:02:38]}  Bg4 {[%clk 0:02:43]} 15. h3 {[%clk 0:02:36]}  Bh5 {[%clk 0:02:44]} 16. Be2 {[%clk 0:02:34]}  Qd7 {[%clk 0:02:40]} 17. Bxf6 {[%clk 0:02:32]}  Rxf6 {[%clk 0:02:40]} 18. Nfxd4 {[%clk 0:02:33]}  Nxd4 {[%clk 0:02:27]} 19. Bxh5 {[%clk 0:02:31]}  Qf5 {[%clk 0:02:19]} 20. Nxd4 {[%clk 0:02:25]}  Qxh5 {[%clk 0:02:15]} 21. Qxh5 {[%clk 0:02:24]} 1-0


[Site "https://www.chess.com"]